lending/lending_fUSD_20250621
["ID","MTS","AMOUNT","RATE_DAILY","PERIOD"]
[366849811,1750512638941,-37112.4967837,0.00024,7]
[366849813,1750512638951,-629.1437,0.00024019,2]
[366849815,1750512638960,-300.46,0.00024055,2]
[366849817,1750512638971,-150.0,0.00024055,2]
[366849819,1750512638981,-304.09,0.00024064,2]
[366849821,1750512638991,-246.41,0.00024064,2]
[366849823,1750512639002,-252.44,0.00024064,2]
[366849825,1750512639012,-230.40195338,0.00024107,10]
[366849827,1750512639021,-803.0,0.00024137,2]
[366849829,1750512639031,-638.0,0.00024137,2]
[366849831,1750512639040,-559.0,0.00024137,2]
[366849833,1750512639051,-2005.0,0.00024137,2]
[366849835,1750512639060,-928.0,0.00024137,2]
[366849837,1750512639071,-1676.0,0.00024137,2]
[366849839,1750512639080,-1161.0,0.00024137,2]
[366849841,1750512639089,-4717.409,0.00024137,2]
[366849843,1750512639099,-3335.0,0.00024137,2]
[366849845,1750512639108,-156.0,0.00024137,2]
[366849847,1750512639118,-4095.0,0.00024137,2]
[366849849,1750512639128,-538.75398561,0.00024138,2]
[366849851,1750512639137,-2500.0,0.00024147,2]
[366849853,1750512639147,-300.0,0.00024147,2]
[366849855,1750512639156,-150.99,0.00024174,2]
[366849857,1750512639165,-512.0,0.00024174,2]
[366849859,1750512639175,-202.0,0.00024184,4]
[366849861,1750512639185,-8102.67633033,0.000242,2]
[366849863,1750512639194,-3738.11475056,0.00024288,2]
[366849865,1750512639204,-538.75398561,0.00024292,2]
[366849867,1750512639213,-35576.9251083,0.000243,2]
[366849869,1750512639223,-800.0,0.000243,4]
[366849871,1750512639232,-1000.0,0.000243,3]
[366849873,1750512639242,-1161.0,0.000243,4]
[366849875,1750512639251,-447.98759565,0.000243,2]
[366849877,1750512639261,-10958.82342758,0.000244,3]
[366849879,1750512639270,-1000.0,0.000244,6]
[366849881,1750512639280,-1000.0,0.000244,6]
[366849883,1750512639289,-1000.0,0.000244,5]
[366849885,1750512639299,-1000.0,0.000244,5]
[366849887,1750512639308,-1000.0,0.000244,4]
[366849889,1750512639317,-1000.0,0.000244,4]
[366849891,1750512639327,-689.0,0.000244,9]
[366849893,1750512639336,-1000.0,0.000244,3]
[366849895,1750512639345,-1000.0,0.000244,3]
[366849897,1750512639355,-1000.0,0.000244,3]
[366849899,1750512639364,-1000.0,0.000244,4]
[366849901,1750512639373,-1000.0,0.000244,4]
[366849903,1750512639383,-1000.0,0.000244,5]
[366849905,1750512639393,-1000.0,0.000244,5]
[366849907,1750512639402,-1000.0,0.000244,6]
[366849909,1750512639411,-738.19,0.00024401,2]
[366849911,1750512639420,-1000.0,0.00024402,2]
[366849913,1750512639430,-1000.0,0.00024408,2]
[366849915,1750512639440,-150.0,0.00024421,2]
[366849917,1750512639449,-150.0,0.00024423,2]
[366849919,1750512639460,-150.0,0.00024426,2]
[366849921,1750512639469,-1000.0,0.00024428,2]
[366849923,1750512639479,-150.0,0.00024435,2]
[366849925,1750512639488,-150.0,0.00024438,2]
[366849927,1750512639498,-1000.0,0.00024443,2]
[366849929,1750512639507,-150.0,0.00024443,2]
[366849931,1750512639517,-538.75398561,0.00024446,2]
[366849933,1750512639527,-150.0,0.00024448,2]
[366849935,1750512639536,-150.0,0.0002445,2]
[366849937,1750512639546,-150.0,0.00024469,2]
[366849939,1750512639555,-150.0,0.0002447,2]
[366849941,1750512639565,-150.0,0.0002447,2]
[366849943,1750512639575,-203.19164962,0.00024474,2]
[366849945,1750512639584,-150.0,0.00024475,2]
[366849947,1750512639594,-500.0,0.00024483,2]
[366849949,1750512639603,-605.6317,0.00024483,2]
[366849951,1750512639613,-2500.0,0.00024483,2]
[366849953,1750512639622,-150.0,0.00024484,2]
[366849955,1750512639631,-150.0,0.00024492,2]
[366849957,1750512639640,-1000.0,0.00024492,2]
[366849959,1750512639649,-300.0,0.00024493,2]
[366849961,1750512639659,-2000.0,0.00024495,2]
[366849963,1750512639668,-150.0,0.00024496,2]
[366849965,1750512639679,-150.0,0.00024498,2]
[366849967,1750512639688,-800.0,0.000245,8]
[366849969,1750512639697,-150.0,0.00024512,2]
[366849971,1750512639706,-150.0,0.00024516,2]
[366849973,1750512639716,-150.0,0.00024522,2]
[366849975,1750512639725,-150.0,0.00024522,2]
[366849977,1750512639735,-150.0,0.00024523,2]
[366849979,1750512639744,-150.0,0.00024526,2]
[366849981,1750512639754,-150.0,0.00024529,2]
[366849983,1750512639764,-150.0,0.0002453,2]
[366849985,1750512639774,-150.0,0.00024532,2]
[366849987,1750512639782,-150.0,0.00024533,2]
[366849989,1750512639792,-228.71581217,0.0002455,2]
[366849991,1750512639801,-150.0,0.00024554,2]
[366849993,1750512639810,-150.0,0.00024557,14]
[366849994,1750512639819,-150.0,0.00024557,14]
[366849996,1750512639829,-150.0,0.00024557,2]
[366849998,1750512639839,-500.0,0.00024557,2]
[366850000,1750512639848,-500.0,0.00024557,14]
[366850002,1750512639859,-150.0,0.00024557,14]
[366850004,1750512639869,-150.0,0.00024557,14]
[366850006,1750512639878,-500.0,0.00024557,14]
[366850008,1750512639887,-8102.67633024,0.00024562,2]
[366850010,1750512639898,-150.0,0.00024562,2]
[366850012,1750512639907,-150.0,0.00024564,2]
[366850014,1750512639917,-1000.0,0.00024566,2]
[366850016,1750512639927,-150.0,0.00024572,2]
[366850018,1750512639937,-150.0,0.00024572,2]
[366850020,1750512639946,-13465.0302,0.00024583,2]
[366850022,1750512639956,-150.0,0.00024584,14]
[366850024,1750512639966,-150.0,0.00024584,2]
[366850026,1750512639975,-500.0,0.00024584,2]
[366850028,1750512639985,-500.0,0.00024584,14]
[366850030,1750512639995,-170.12094998,0.00024584,14]
[366850031,1750512640004,-150.0,0.00024584,14]
[366850032,1750512640013,-591.52395666,0.00024584,14]
[366850033,1750512640022,-150.0,0.00024585,2]
[366850034,1750512640031,-150.0,0.00024588,2]
[366850035,1750512640040,-181.16282004,0.0002459,2]
[366850036,1750512640049,-5000.0,0.00024592,2]
[366850037,1750512640059,-150.0,0.00024594,2]
[366850038,1750512640068,-150.0,0.00024597,2]
[366850040,1750512640078,-558.6462,0.00024599,3]
[366850042,1750512640088,-310.22674376,0.00024599,2]
[366850044,1750512640097,-181.16282004,0.00024599,2]
[366850046,1750512640107,-511.45763778,0.000246,2]
[366850048,1750512640116,-1600.0,0.000246,8]
[366850051,1750512640125,-538.75398561,0.000246,2]
[366850054,1750512640135,-200.0,0.000246,2]
[366850057,1750512640145,-150.0,0.00024606,2]
[366850059,1750512640154,-150.0,0.00024612,14]
[366850061,1750512640163,-150.0,0.00024612,2]
[366850063,1750512640172,-500.0,0.00024612,2]
[366850065,1750512640182,-500.0,0.00024612,14]
[366850067,1750512640192,-236.97411969,0.00024612,14]
[366850069,1750512640201,-611.964,0.00024612,7]
[366850071,1750512640211,-150.0,0.00024615,2]
[366850073,1750512640221,-218.18996484,0.00024616,2]
[366850075,1750512640230,-150.0,0.00024619,2]
[366850077,1750512640239,-150.0,0.00024639,14]
[366850079,1750512640249,-203.5949122,0.00024639,14]
[366850081,1750512640258,-500.0,0.00024639,14]
[366850083,1750512640268,-500.0,0.00024639,30]
[366850085,1750512640277,-150.39587086,0.00024639,30]
[366850087,1750512640287,-500.0,0.00024639,30]
[366850116,1750512640565,-500.0,0.00024639,30]
[366850118,1750512640574,-500.0,0.00024639,30]
[366850120,1750512640584,-150.0,0.00024639,30]
[366850122,1750512640593,-500.0,0.00024639,30]
[366850124,1750512640603,-150.0,0.00024639,14]
[366850126,1750512640615,-150.0,0.00024639,2]
[366850128,1750512640624,-500.0,0.00024639,2]
[366850130,1750512640634,-500.0,0.00024639,14]
[366850132,1750512640644,-150.0,0.0002464,2]
[366850134,1750512640653,-150.0,0.0002464,2]
[366850136,1750512640662,-150.0,0.00024643,2]
[366850139,1750512640673,-1000.0,0.00024643,2]
[366850140,1750512640683,-150.0,0.00024648,2]
[366850142,1750512640692,-150.0,0.0002465,2]
[366850145,1750512640702,-6015.0,0.00024658,4]
[366850147,1750512640711,-150.0,0.00024658,14]
[366850149,1750512640721,-230.40195338,0.00024659,11]
[366850151,1750512640730,-150.0,0.00024659,2]
[366850153,1750512640743,-300.0,0.0002466,2]
[366850155,1750512640753,-150.0,0.0002466,2]
[366850157,1750512640762,-150.0,0.00024661,2]
[366850159,1750512640771,-1000.0,0.00024664,2]
[366850161,1750512640781,-150.0,0.00024665,2]
[366850163,1750512640790,-150.0,0.00024666,2]
[366850165,1750512640799,-150.0,0.00024666,14]
[366850167,1750512640808,-502.50527384,0.00024666,14]
[366850169,1750512640818,-500.0,0.00024666,30]
[366850171,1750512640827,-565.51241609,0.00024666,30]
[366850173,1750512640837,-500.0,0.00024666,30]
[366850175,1750512640846,-500.0,0.00024666,30]
[366850177,1750512640858,-151.31413614,0.00024666,30]
[366850179,1750512640868,-500.0,0.00024666,30]
[366850181,1750512640878,-150.0,0.00024667,14]
[366850183,1750512640887,-150.0,0.00024667,2]
[366850185,1750512640899,-500.0,0.00024667,2]
[366850187,1750512640908,-500.0,0.00024667,14]
[366850189,1750512640917,-185.18628658,0.00024667,2]
[366850191,1750512640926,-350.0,0.00024667,2]
[366850193,1750512640936,-500.0,0.0002467,2]
[366850195,1750512640946,-500.0,0.0002467,2]
[366850197,1750512640956,-500.0,0.0002467,2]
[366850199,1750512640965,-500.0,0.0002467,2]
[366850201,1750512640976,-600.91536243,0.0002467,2]
[366850203,1750512640985,-1000.0,0.0002467,2]
[366850205,1750512640994,-1000.0,0.0002467,2]
[366850207,1750512641005,-1000.0,0.0002467,2]
[366850209,1750512641015,-1000.0,0.0002467,2]
[366850211,1750512641025,-1000.0,0.0002467,2]
[366850213,1750512641034,-501.8520891,0.00024673,2]
[366850215,1750512641044,-160.17830352,0.00024673,2]
[366850217,1750512641054,-540.30081214,0.00024673,2]
[366850219,1750512641064,-500.0,0.00024673,2]
[366850221,1750512641073,-500.0,0.00024673,2]
[366850223,1750512641082,-500.0,0.00024673,2]
[366850225,1750512641092,-500.0,0.00024673,2]
[366850227,1750512641101,-500.0,0.00024673,2]
[366850229,1750512641111,-500.0,0.00024673,2]
[366850231,1750512641120,-559.12118164,0.00024673,2]
[366850233,1750512641129,-160.1772958,0.00024673,2]
[366850235,1750512641139,-500.0,0.00024673,2]
[366850237,1750512641149,-500.0,0.00024673,2]
[366850239,1750512641159,-378.45726116,0.00024673,2]
[366850241,1750512641168,-150.0,0.00024673,2]
[366850243,1750512641177,-150.0,0.00024675,2]
[366850245,1750512641187,-150.0,0.0002468,2]
[366850247,1750512641197,-151.48,0.0002468,2]
[366850249,1750512641207,-1546.6460196,0.00024683,2]
[366850251,1750512641216,-242.6803744,0.00024683,2]
[366850253,1750512641226,-62147.081212,0.00024683,2]
[366850255,1750512641235,-392.2658074,0.00024683,2]
[366850257,1750512641245,-4490.9973631,0.00024683,2]
[366850259,1750512641254,-50911.5853532,0.00024683,2]
[366850261,1750512641263,-3891.3887528,0.00024683,2]
[366850263,1750512641273,-150.0,0.00024685,14]
[366850265,1750512641282,-150.0,0.00024688,2]
[366850267,1750512641291,-250000.0,0.0002469,7]
[366850269,1750512641301,-1028.34530853,0.0002469,5]
[366850271,1750512641310,-357.71891414,0.00024692,120]
[366850273,1750512641320,-1423.83854959,0.00024692,120]
[366850275,1750512641329,-151.0,0.00024692,2]
[366850277,1750512641339,-151.0,0.00024692,2]
[366850279,1750512641349,-2000.0,0.00024692,4]
[366850281,1750512641358,-150.0,0.00024692,2]
[366850283,1750512641368,-10086.99364628,0.00024692,2]
[366850285,1750512641378,-150.0,0.00024692,2]
[366850287,1750512641388,-574.97324264,0.00024692,2]
[366850289,1750512641397,-150.0,0.00024692,2]
[366850291,1750512641407,-3899.2712366,0.00024692,2]
[366850293,1750512641416,-150.0,0.00024692,2]
[366850295,1750512641425,-72204.28255776,0.00024692,2]
[366850297,1750512641435,-150.0,0.00024692,2]
[366850299,1750512641444,-5730.30486352,0.00024692,2]
[366850301,1750512641454,-200.0,0.00024692,2]
[366850303,1750512641463,-182.85802,0.00024692,2]
[366850305,1750512641473,-200.0,0.00024692,2]
[366850307,1750512641483,-150.0,0.00024694,14]
[366850309,1750512641494,-500.0,0.00024694,30]
[366850311,1750512641503,-500.0,0.00024694,30]
[366850313,1750512641513,-500.0,0.00024694,30]
[366850315,1750512641522,-500.0,0.00024694,30]
[366850317,1750512641532,-175.86366811,0.00024694,14]
[366850319,1750512641542,-230.81427442,0.00024694,2]
[366850322,1750512641552,-500.0,0.00024694,2]
[366850324,1750512641561,-500.0,0.00024694,14]
[366850326,1750512641571,-1330.0,0.00024694,2]
[366850328,1750512641580,-1150.54431572,0.00024698,10]
[366850330,1750512641589,-240462.82433038,0.00024699,2]
[366850332,1750512641599,-1834.2375805,0.00024699,2]
[366850334,1750512641610,-34373.95721264,0.00024699,2]
[366850336,1750512641619,-300.0,0.00024699,10]
[366850338,1750512641628,-300.0,0.00024699,10]
[366850340,1750512641637,-300.0,0.00024699,10]
[366850342,1750512641646,-300.0,0.00024699,10]
[366850343,1750512641656,-300.0,0.00024699,10]
[366850344,1750512641664,-300.0,0.00024699,10]
[366850345,1750512641673,-300.0,0.00024699,10]
[366850346,1750512641684,-300.0,0.00024699,10]
[366850347,1750512641693,-300.0,0.00024699,10]
[366850348,1750512641702,-666.0,0.00024699,2]
[366850349,1750512641711,-300.0,0.00024699,10]
[366850350,1750512641720,-101773.28352328,0.00024699,4]
[366850352,1750512641730,-64995.61535323,0.00024699,2]
[366850354,1750512641739,-196.47,0.00024699,2]
[366850356,1750512641750,-150.0,0.00024699,10]
[366850358,1750512641759,-896158.85661674,0.000247,2]
[366850360,1750512641769,-758674.91257173,0.000247,2]
[366850362,1750512641778,-113654.79,0.000247,7]
[366850364,1750512641787,-12168.63,0.000247,2]
[366850366,1750512641797,-442.0,0.000247,2]
[366850368,1750512641806,-387.0,0.000247,2]
[366850370,1750512641816,-259.45463877,0.000247,2]
[366850372,1750512641827,-238.0,0.000247,2]
[366850374,1750512641836,-2024.4265,0.000247,2]
[366850376,1750512641845,-500.8948,0.000247,2]
[366850378,1750512641855,-376.0,0.000247,2]
[366850380,1750512641865,-3203.4145,0.000247,2]
[366850382,1750512641874,-769.0,0.000247,2]
[366850384,1750512641883,-2694.6944,0.000247,2]
[366850386,1750512641894,-2500.0,0.000247,9]
[366850388,1750512641905,-203.59867748,0.00024713,14]
[366850390,1750512641915,-150.0,0.00024721,14]
[366850392,1750512641925,-500.0,0.00024721,30]
[366850394,1750512641934,-500.0,0.00024721,30]
[366850396,1750512641944,-500.0,0.00024721,30]
[366850398,1750512641953,-500.0,0.00024721,30]
[366850400,1750512641963,-500.0,0.00024721,2]
[366850402,1750512641973,-500.0,0.00024721,14]
[366850404,1750512641982,-168.0,0.00024725,2]
[366850406,1750512641991,-500.0,0.00024727,2]
[366850408,1750512642001,-500.0,0.00024727,2]
[366850410,1750512642010,-500.0,0.00024727,2]
[366850412,1750512642019,-150.0,0.00024749,14]
[366850414,1750512642028,-500.0,0.00024749,30]
[366850416,1750512642037,-500.0,0.00024749,30]
[366850418,1750512642047,-500.0,0.00024749,30]
[366850419,1750512642056,-500.0,0.00024749,30]
[366850422,1750512642066,-500.0,0.00024749,2]
[366850423,1750512642075,-500.0,0.00024749,14]
[366850426,1750512642085,-320.0,0.00024771,2]
[366850428,1750512642095,-500.0,0.00024773,2]
[366850430,1750512642104,-500.0,0.00024773,2]
[366850432,1750512642113,-181.79436086,0.00024773,2]
[366850433,1750512642123,-500.0,0.00024773,2]
[366850435,1750512642132,-500.0,0.00024773,2]
[366850437,1750512642142,-500.0,0.00024773,2]
[366850439,1750512642151,-361.00977431,0.00024773,2]
[366850441,1750512642160,-159.99635359,0.00024773,2]
[366850443,1750512642169,-211.28431149,0.00024776,14]
[366850445,1750512642179,-500.0,0.00024776,30]
[366850447,1750512642188,-500.0,0.00024776,30]
[366850449,1750512642198,-500.0,0.00024776,30]
[366850451,1750512642207,-500.0,0.00024776,30]
[366850453,1750512642217,-500.0,0.00024776,2]
[366850456,1750512642227,-500.0,0.00024776,14]
[366850457,1750512642237,-300.0,0.00024799,10]
[366850460,1750512642246,-300.0,0.00024799,10]
[366850462,1750512642256,-300.0,0.00024799,10]
[366850464,1750512642265,-300.0,0.00024799,10]
[366850466,1750512642274,-300.0,0.00024799,10]
[366850467,1750512642285,-300.0,0.00024799,10]
[366850469,1750512642294,-300.0,0.00024799,10]
[366850471,1750512642304,-300.0,0.00024799,10]
[366850473,1750512642314,-110000.0,0.000248,7]
[366850475,1750512642323,-151.0,0.000248,7]
[366850477,1750512642333,-151.0,0.000248,7]
[366850479,1750512642343,-151.269193,0.000248,7]
[366850481,1750512642353,-151.0,0.000248,7]
[366850483,1750512642364,-151.0,0.000248,7]
[366850485,1750512642373,-225.209043,0.000248,7]
[366850487,1750512642383,-225.209043,0.000248,7]
[366850489,1750512642393,-151.0,0.000248,7]
[366850491,1750512642403,-151.0,0.000248,7]
[366850493,1750512642413,-151.0,0.000248,7]
[366850496,1750512642423,-151.0,0.000248,7]
[366850498,1750512642433,-151.0,0.000248,7]
[366850500,1750512642442,-151.0,0.000248,7]
[366850502,1750512642452,-151.0,0.000248,7]
[366850504,1750512642462,-151.0,0.000248,7]
[366850505,1750512642473,-151.0,0.000248,7]
[366850507,1750512642482,-151.0,0.000248,7]
[366850509,1750512642493,-151.395825,0.000248,7]
[366850511,1750512642503,-151.0,0.000248,7]
[366850513,1750512642513,-151.0,0.000248,7]
[366850515,1750512642523,-151.0,0.000248,7]
[366850517,1750512642533,-151.0,0.000248,7]
[366850519,1750512642543,-151.0,0.000248,7]
[366850521,1750512642552,-151.0,0.000248,7]
[366850523,1750512642562,-151.0,0.000248,7]
[366850525,1750512642571,-151.0,0.000248,7]
[366850527,1750512642581,-151.0,0.000248,7]
[366850529,1750512642591,-151.0,0.000248,7]
[366850531,1750512642601,-914.748671,0.000248,7]
[366850533,1750512642610,-151.0,0.000248,7]
[366850535,1750512642620,-151.0,0.000248,7]
[366850537,1750512642630,-151.0,0.000248,7]
[366850539,1750512642640,-151.0,0.000248,7]
[366850541,1750512642649,-151.0,0.000248,7]
[366850543,1750512642658,-151.0,0.000248,7]
[366850545,1750512642668,-151.0,0.000248,7]
[366850547,1750512642677,-206.306235,0.000248,7]
[366850549,1750512642687,-206.306235,0.000248,7]
[366850551,1750512642697,-151.0,0.000248,7]
[366850553,1750512642706,-151.0,0.000248,7]
[366850555,1750512642715,-151.0,0.000248,7]
[366850557,1750512642725,-151.0,0.000248,7]
[366850559,1750512642734,-167.21979,0.000248,7]
[366850561,1750512642743,-167.21979,0.000248,7]
[366850563,1750512642753,-151.0,0.000248,7]
[366850565,1750512642762,-151.251723,0.000248,7]
[366850567,1750512642771,-151.0,0.000248,7]
[366850569,1750512642781,-152.040102,0.000248,7]
[366850571,1750512642790,-151.0,0.000248,7]
[366850572,1750512642800,-151.0,0.000248,7]
[366850574,1750512642810,-299.020224,0.000248,7]
[366850576,1750512642820,-210.461369,0.000248,7]
[366850579,1750512642831,-151.0,0.000248,7]
[366850581,1750512642840,-210.461369,0.000248,7]
[366850583,1750512642850,-151.0,0.000248,7]
[366850586,1750512642860,-151.0,0.000248,7]
[366850587,1750512642870,-151.0,0.000248,7]
[366850589,1750512642879,-151.0,0.000248,7]
[366850591,1750512642889,-151.0,0.000248,7]
[366850593,1750512642902,-157.861356,0.000248,7]
[366850595,1750512642912,-225.21464,0.000248,7]
[366850597,1750512642922,-225.21464,0.000248,7]
[366850599,1750512642931,-151.0,0.000248,7]
[366850601,1750512642942,-151.0,0.000248,7]
[366850603,1750512642951,-151.0,0.000248,7]
[366850605,1750512642961,-151.0,0.000248,7]
[366850607,1750512642972,-151.0,0.000248,7]
[366850611,1750512642983,-779.074152,0.000248,7]
[366850613,1750512642992,-289.061344,0.000248,7]
[366850616,1750512643002,-151.0,0.000248,7]
[366850619,1750512643011,-151.0,0.000248,7]
[366850622,1750512643020,-151.0,0.000248,7]
[366850625,1750512643030,-151.0,0.000248,7]
[366850626,1750512643039,-151.0,0.000248,7]
[366850628,1750512643048,-151.0,0.000248,7]
[366850630,1750512643058,-151.0,0.000248,7]
[366850632,1750512643067,-151.0,0.000248,7]
[366850634,1750512643077,-151.0,0.000248,7]
[366850636,1750512643087,-151.0,0.000248,7]
[366850638,1750512643096,-151.0,0.000248,7]
[366850640,1750512643106,-151.0,0.000248,7]
[366850643,1750512643116,-273.847944,0.000248,7]
[366850645,1750512643126,-151.0,0.000248,7]
[366850647,1750512643135,-273.847944,0.000248,7]
[366850649,1750512643145,-1834.323179,0.000248,7]
[366850651,1750512643155,-151.0,0.000248,7]
[366850653,1750512643165,-151.0,0.000248,7]
[366850655,1750512643176,-1834.323179,0.000248,7]
[366850657,1750512643186,-153.828957,0.000248,7]
[366850659,1750512643195,-151.0,0.000248,7]
[366850661,1750512643205,-151.0,0.000248,7]
[366850662,1750512643215,-151.0,0.000248,7]
[366850663,1750512643225,-459.673518,0.000248,7]
[366850664,1750512643235,-459.673518,0.000248,7]
[366850665,1750512643245,-151.0,0.000248,7]
[366850666,1750512643255,-151.0,0.000248,7]
[366850667,1750512643264,-151.0,0.000248,7]
[366850669,1750512643274,-151.0,0.000248,7]
[366850671,1750512643283,-151.0,0.000248,7]
[366850673,1750512643293,-151.0,0.000248,7]
[366850674,1750512643302,-151.0,0.000248,7]
[366850676,1750512643312,-151.0,0.000248,7]
[366850678,1750512643321,-151.0,0.000248,7]
[366850680,1750512643330,-151.0,0.000248,7]
[366850682,1750512643340,-151.0,0.000248,7]
[366850684,1750512643349,-151.0,0.000248,7]
[366850686,1750512643360,-151.0,0.000248,7]
[366850688,1750512643369,-151.0,0.000248,7]
[366850690,1750512643380,-151.0,0.000248,7]
[366850692,1750512643389,-151.0,0.000248,7]
[366850694,1750512643399,-151.0,0.000248,7]
[366850696,1750512643408,-151.0,0.000248,7]
[366850698,1750512643417,-3300.0,0.000248,9]
[366850700,1750512643427,-214.197832,0.000248,7]
[366850702,1750512643437,-214.197832,0.000248,7]
[366850704,1750512643446,-413381.379889,0.000248,3]
[366850706,1750512643457,-328.122819,0.000248,7]
[366850708,1750512643466,-328.122819,0.000248,7]
[366850710,1750512643477,-151.0,0.000248,7]
[366850712,1750512643487,-151.0,0.000248,7]
[366850714,1750512643496,-867.160274,0.000248,7]
[366850716,1750512643506,-867.160274,0.000248,7]
[366850718,1750512643516,-500.0,0.00024803,30]
[366850720,1750512643526,-500.0,0.00024803,30]
[366850722,1750512643536,-500.0,0.00024803,30]
[366850724,1750512643546,-500.0,0.00024803,30]
[366850726,1750512643556,-500.0,0.00024804,2]
[366850728,1750512643566,-500.0,0.00024804,14]
[366850730,1750512643575,-151.0,0.00024808,7]
[366850732,1750512643585,-151.0,0.00024808,7]
[366850734,1750512643594,-544.562858,0.00024808,7]
[366850736,1750512643603,-544.562858,0.00024808,7]
[366850738,1750512643613,-151.0,0.00024808,7]
[366850740,1750512643622,-151.0,0.00024808,7]
[366850742,1750512643632,-151.0,0.00024808,7]
[366850744,1750512643642,-320.0,0.00024814,2]
[366850746,1750512643651,-156.587,0.00024824,2]
[366850747,1750512643660,-215.0738,0.00024824,2]
[366850749,1750512643670,-500.0,0.00024831,30]
[366850751,1750512643679,-500.0,0.00024831,30]
[366850753,1750512643689,-500.0,0.00024831,30]
[366850755,1750512643699,-500.0,0.00024831,30]
[366850757,1750512643708,-500.0,0.00024831,2]
[366850759,1750512643718,-500.0,0.00024831,14]
[366850761,1750512643727,-151.0,0.00024831,7]
[366850763,1750512643738,-151.0,0.00024831,7]
[366850765,1750512643748,-151.0,0.00024831,7]
[366850767,1750512643758,-151.0,0.00024831,7]
[366850769,1750512643767,-151.0,0.00024831,7]
[366850771,1750512643776,-151.0,0.00024831,7]
[366850773,1750512643786,-151.0,0.00024831,7]
[366850775,1750512643795,-151.0,0.00024831,7]
[366850777,1750512643804,-150.0,0.00024836,10]
[366850779,1750512643814,-151.0,0.00024836,7]
[366850781,1750512643823,-151.0,0.00024836,7]
[366850783,1750512643834,-151.0,0.00024836,7]
[366850785,1750512643843,-151.0,0.00024836,7]
[366850787,1750512643853,-151.0,0.00024836,7]
[366850789,1750512643863,-225.804174,0.00024836,7]
[366850791,1750512643873,-285.626269,0.00024836,7]
[366850793,1750512643883,-500.0,0.00024858,30]
[366850795,1750512643893,-500.0,0.00024858,30]
[366850797,1750512643903,-500.0,0.00024858,30]
[366850800,1750512643913,-500.0,0.00024858,30]
[366850803,1750512643922,-173.9494065,0.00024858,2]
[366850806,1750512643931,-500.0,0.00024858,14]
[366850808,1750512643940,-151.0,0.00024882,7]
[366850810,1750512643949,-150.0,0.00024882,2]
[366850812,1750512643958,-355.03,0.00024882,2]
[366850814,1750512643967,-150.0,0.00024882,2]
[366850815,1750512643977,-150.0,0.00024882,2]
[366850817,1750512643986,-150.0,0.00024882,2]
[366850819,1750512643995,-150.0,0.00024882,2]
[366850820,1750512644004,-170.94,0.00024882,2]
[366850822,1750512644013,-354.55,0.00024882,2]